Workbook

Sheet Discounted Cash Flow Template
B1: DISCOUNTED CASH FLOW TEMPLATE | G1: Complete white fields only. Shaded fields will calculate automatically.
B2: COMPANY NAME | E2: MANAGER NAME | G2: COMPLETED BY | I2: DATE COMPLETED | J2: INITIAL INVESTMENT | L2: 0
J3: RATE OF DISCOUNT | L3: 0
B5: YEAR NUMBER | C5: YEAR DATE | D5: INCOME | E5: EXPENSES | G5: CASH OUTFLOW | H5: NET CASH | I5: DISCOUNTED CASH FLOW | K5: PRESENT VALUE | L5: NET PRESENT VALUE
D6: CASH INFLOW | E6: FIXED | F6: VARIABLE | G6: FIXED + VARIABLE | H6: INFLOW LESS OUTFLOW | I6: PRESENT VALUE | J6: CUMULATIVE PRESENT VALUE
B7: 1 | C7: 2018 | G7: =E7+F7 -> 0 | H7: =D7-G7 -> 0 | I7: =H7/(1+RATE_OF_DISCOUNT)^B7 -> 0 | J7: =SUM(INDEX(I7:I36,1,1):I7) -> 0 | K7: =J7-INITIAL_INVESTMENT -> 0 | L7: =NPV(RATE_OF_DISCOUNT,-INITIAL_INVESTMENT,J7) -> 0
B8: =B7+1 -> 2 | C8: =C7+1 -> 2019 | G8: =E8+F8 -> 0 | H8: =D8-G8 -> 0 | I8: 0 | J8: =SUM(INDEX(I7:I36,1,1):I8) -> 0 | K8: 0 | L8: 0
B9: =B8+1 -> 3 | C9: 2020 | G9: 0 | H9: 0 | I9: 0 | J9: =SUM(INDEX(I7:I36,1,1):I9) -> 0 | K9: 0 | L9: 0
B10: 4 | C10: 2021 | G10: 0 | H10: 0 | I10: 0 | J10: =SUM(INDEX(I7:I36,1,1):I10) -> 0 | K10: 0 | L10: 0
B11: 5 | C11: 2022 | G11: 0 | H11: 0 | I11: 0 | J11: =SUM(INDEX(I7:I36,1,1):I11) -> 0 | K11: 0 | L11: 0
B12: 6 | C12: 2023 | G12: 0 | H12: 0 | I12: 0 | J12: =SUM(INDEX(I7:I36,1,1):I12) -> 0 | K12: 0 | L12: 0
B13: =B12+1 -> 7 | C13: =C12+1 -> 2024 | G13: =E13+F13 -> 0 | H13: =D13-G13 -> 0 | I13: 0 | J13: =SUM(INDEX(I7:I36,1,1):I13) -> 0 | K13: 0 | L13: 0
B14: =B13+1 -> 8 | C14: =C13+1 -> 2025 | G14: 0 | H14: 0 | I14: 0 | J14: =SUM(INDEX(I7:I36,1,1):I14) -> 0 | K14: 0 | L14: 0
B15: 9 | C15: 2026 | G15: 0 | H15: 0 | I15: 0 | J15: =SUM(INDEX(I7:I36,1,1):I15) -> 0 | K15: 0 | L15: 0
B16: 10 | C16: 2027 | G16: 0 | H16: 0 | I16: 0 | J16: =SUM(INDEX(I7:I36,1,1):I16) -> 0 | K16: 0 | L16: 0
B17: 11 | C17: 2028 | G17: 0 | H17: 0 | I17: 0 | J17: =SUM(INDEX(I7:I36,1,1):I17) -> 0 | K17: 0 | L17: 0
B18: =B17+1 -> 12 | C18: =C17+1 -> 2029 | G18: 0 | H18: 0 | I18: 0 | J18: =SUM(INDEX(I7:I36,1,1):I18) -> 0 | K18: 0 | L18: 0
B19: =B18+1 -> 13 | C19: =C18+1 -> 2030 | G19: 0 | H19: 0 | I19: 0 | J19: =SUM(INDEX(I7:I36,1,1):I19) -> 0 | K19: 0 | L19: 0
B20: 14 | C20: 2031 | G20: 0 | H20: 0 | I20: 0 | J20: =SUM(INDEX(I7:I36,1,1):I20) -> 0 | K20: 0 | L20: 0
B21: 15 | C21: 2032 | G21: 0 | H21: 0 | I21: 0 | J21: =SUM(INDEX(I7:I36,1,1):I21) -> 0 | K21: 0 | L21: 0
B22: 16 | C22: 2033 | G22: 0 | H22: 0 | I22: 0 | J22: =SUM(INDEX(I7:I36,1,1):I22) -> 0 | K22: 0 | L22: 0
B23: =B22+1 -> 17 | C23: =C22+1 -> 2034 | G23: =E23+F23 -> 0 | H23: =D23-G23 -> 0 | I23: 0 | J23: =SUM(INDEX(I7:I36,1,1):I23) -> 0 | K23: 0 | L23: 0
B24: =B23+1 -> 18 | C24: =C23+1 -> 2035 | G24: 0 | H24: 0 | I24: 0 | J24: =SUM(INDEX(I7:I36,1,1):I24) -> 0 | K24: 0 | L24: 0
B25: 19 | C25: 2036 | G25: 0 | H25: 0 | I25: 0 | J25: =SUM(INDEX(I7:I36,1,1):I25) -> 0 | K25: 0 | L25: 0
B26: 20 | C26: 2037 | G26: 0 | H26: 0 | I26: 0 | J26: =SUM(INDEX(I7:I36,1,1):I26) -> 0 | K26: 0 | L26: 0
B27: 21 | C27: 2038 | G27: 0 | H27: 0 | I27: 0 | J27: =SUM(INDEX(I7:I36,1,1):I27) -> 0 | K27: 0 | L27: 0
B28: =B27+1 -> 22 | C28: =C27+1 -> 2039 | G28: 0 | H28: 0 | I28: 0 | J28: =SUM(INDEX(I7:I36,1,1):I28) -> 0 | K28: 0 | L28: 0
B29: =B28+1 -> 23 | C29: =C28+1 -> 2040 | G29: 0 | H29: 0 | I29: 0 | J29: =SUM(INDEX(I7:I36,1,1):I29) -> 0 | K29: 0 | L29: 0
B30: 24 | C30: 2041 | G30: 0 | H30: 0 | I30: 0 | J30: =SUM(INDEX(I7:I36,1,1):I30) -> 0 | K30: 0 | L30: 0
B31: 25 | C31: 2042 | G31: 0 | H31: 0 | I31: 0 | J31: =SUM(INDEX(I7:I36,1,1):I31) -> 0 | K31: 0 | L31: 0
B32: 26 | C32: 2043 | G32: 0 | H32: 0 | I32: 0 | J32: =SUM(INDEX(I7:I36,1,1):I32) -> 0 | K32: 0 | L32: 0
B33: =B32+1 -> 27 | C33: =C32+1 -> 2044 | G33: =E33+F33 -> 0 | H33: =D33-G33 -> 0 | I33: 0 | J33: =SUM(INDEX(I7:I36,1,1):I33) -> 0 | K33: 0 | L33: 0
B34: =B33+1 -> 28 | C34: =C33+1 -> 2045 | G34: 0 | H34: 0 | I34: 0 | J34: =SUM(INDEX(I7:I36,1,1):I34) -> 0 | K34: 0 | L34: 0
B35: 29 | C35: 2046 | G35: 0 | H35: 0 | I35: 0 | J35: =SUM(INDEX(I7:I36,1,1):I35) -> 0 | K35: 0 | L35: 0
B36: 30 | C36: 2047 | G36: 0 | H36: 0 | I36: 0 | J36: =SUM(INDEX(I7:I36,1,1):I36) -> 0 | K36: 0 | L36: 0
B38: CLICK HERE TO CREATE DISCOUNTED CASH FLOW TEMPLATES IN SMARTSHEET
